fUST/lending_fUST_20240611
["ID","MTS","AMOUNT","RATE_DAILY","PERIOD"]
[329082371,1718085034578,-500.0,0.00023109,7]
[329082373,1718085034591,-500.0,0.00023109,7]
[329082374,1718085034606,-534.52,0.00023109,7]
[329082375,1718085034617,-500.0,0.00023109,7]
[329082376,1718085034627,-500.0,0.00023109,7]
[329082377,1718085034638,-500.0,0.00023109,7]
[329082378,1718085034649,-500.0,0.00023109,7]
[329082379,1718085034660,-500.0,0.00023109,7]
[329082380,1718085034670,-555.33,0.00023109,7]
[329082381,1718085034681,-379.63861466,0.00023183,2]
[329082382,1718085034691,-2229.55539421,0.00023193,2]
[329082383,1718085034701,-528.3176694,0.0002328,2]
[329082384,1718085034712,-412.14812955,0.0002328,2]
[329082385,1718085034723,-774.49408999,0.00023281,2]
[329082386,1718085034734,-164.65983281,0.00023281,2]
[329082387,1718085034745,-1021.27790959,0.00023282,2]
[329082388,1718085034755,-8733.19910891,0.00023283,2]
[329082402,1718085035517,273.37336231,9.9e-05,2]
[329082431,1718085044643,273.37336231,9.9e-05,2]
[329082434,1718085045662,-19313.15373324,0.00021667,2]
[329082435,1718085045674,-26311.93956335,0.00023283,2]
[329082436,1718085045685,-2113.53223879,0.00023283,2]
[329082437,1718085045696,-368.56,0.00023283,3]
[329082438,1718085045708,-249.49868128,0.00023284,2]
[329082439,1718085045719,-162.55463589,0.00023285,2]
[329082440,1718085045734,-7938.2882071,0.00023285,2]
[329082441,1718085045745,-1794.56149671,0.00023287,2]
[329082443,1718085046424,-7001.62222,0.00023287,2]
[329082448,1718085046922,-4118.40291957,0.00023287,2]
[329082453,1718085052591,273.37336231,9.9e-05,2]
[329082454,1718085052881,317.55665125,9.999e-05,2]
[329082456,1718085061384,273.37336231,9.9e-05,2]
[329082457,1718085070552,273.37336231,9.9e-05,2]
[329082459,1718085079445,273.37336231,9.9e-05,2]
[329082460,1718085087372,273.37336231,9.9e-05,2]
[329082461,1718085095536,273.37336231,9.9e-05,2]
[329082462,1718085104142,273.37336231,9.9e-05,2]
[329082463,1718085112926,273.37336231,9.9e-05,2]
[329082464,1718085121489,273.37336231,9.9e-05,2]
[329082465,1718085130625,273.37336231,9.9e-05,2]
[329082466,1718085138571,273.37336231,9.9e-05,2]
[329082467,1718085147418,273.37336231,9.9e-05,2]
[329082468,1718085155904,273.37336231,9.9e-05,2]
[329082469,1718085164099,273.37336231,9.9e-05,2]
[329082470,1718085172712,216.67123439,9.9e-05,2]
[329082478,1718085970068,155.02790502,9.999e-05,2]
[329082489,1718086127456,165.80260909,9.9e-05,2]
[329082490,1718086138296,1000.0,0.00025,60]
[329082583,1718086246076,-2037.29149856,0.00020583,2]
[329082585,1718086246086,-1355.41274288,0.00020584,2]
[329082586,1718086246097,-5412.63711834,0.00020585,2]
[329082588,1718086246111,-558.4620605,0.00020585,2]
[329082591,1718086246121,-153.0,0.00020587,2]
[329082593,1718086246132,-6183.83966507,0.00021665,2]
[329082594,1718086246143,-166.666666,0.00021918,2]
[329082595,1718086246153,-160.0543974,0.00022136,2]
[329082596,1718086246163,-3000.0,0.00022161,2]
[329082598,1718086246173,-166.666666,0.00022447,2]
[329082600,1718086246187,-166.666666,0.00022976,2]
[329082602,1718086246198,-1000.0,0.00023,5]
[329082604,1718086246208,-4239.70515949,0.00023259,2]
[329082605,1718086246227,-166.5872029,0.00023286,2]
[329082607,1718086246237,-376.86353874,0.00023286,4]
[329082608,1718086246250,-1902.72717762,0.00023286,4]
[329082609,1718086246260,-187.14294329,0.00023286,2]
[329082610,1718086246272,-1853.86146306,0.00023287,2]
[329082611,1718086246282,-154.2534772,0.00023311,2]
[329082612,1718086246293,-151.0,0.00023326,5]
[329082613,1718086246303,-156.93062501,0.00023373,3]
[329082614,1718086246313,-4004.519054,0.000234,14]
[329082615,1718086246323,-154.3298821,0.00023452,2]
[329082616,1718086246334,-593.0,0.000235,2]
[329082617,1718086246344,-166.666666,0.00023506,2]
[329082618,1718086246354,-254.0,0.000236,2]
[329082619,1718086246363,-1008.927157,0.000236,2]
[329082620,1718086246374,-286865.26599076,0.0002361,2]
[329082621,1718086246500,-227638.93478556,0.00023617,2]
[329082622,1718086246514,-2781.27117679,0.00023617,2]
[329082640,1718086546604,515.78666904,9.999e-05,2]
[329082642,1718087272354,187.41110824,9.999e-05,2]
[329082688,1718087366390,692.66500344,9.999e-05,2]
[329082733,1718087434665,-2114.12320999,0.00015499,2]
[329082734,1718087434676,-539.81469307,0.000155,2]
[329082735,1718087434686,-1984.07396026,0.00015579,2]
[329082737,1718087434698,-300.0,0.0001558,2]
[329082739,1718087434709,-300.0,0.0001558,2]
[329082741,1718087434720,-187.50951671,0.00015581,2]
[329082743,1718087434731,-523.30555836,0.00015581,2]
[329082745,1718087434741,-30473.98147795,0.00015583,2]
[329082747,1718087434752,-939.34906729,0.000156,2]
[329082749,1718087434762,-240.0,0.00017041,2]
[329082751,1718087434776,-420.0,0.00017138,2]
[329082753,1718087434786,-539.81469306,0.00017422,2]
[329082755,1718087434800,-174.08469328,0.00017896,2]
[329082757,1718087434813,-419.56689804,0.00017896,2]
[329082759,1718087434825,-10490.37515331,0.00017898,2]
[329082761,1718087434836,-895.6,0.00018275,3]
[329082763,1718087434846,-895.6,0.00018829,3]
[329082764,1718087434857,-274.48668137,0.000189,2]
[329082766,1718087434869,-539.81469306,0.00019345,2]
[329082768,1718087434880,-534.81901265,0.00019382,3]
[329082770,1718087434893,-360.78098735,0.00019382,3]
[329082772,1718087434904,-895.6,0.00019936,3]
[329082774,1718087434915,-343.93557934,0.00020489,5]
[329082776,1718087434928,-551.66442066,0.00020489,5]
[329082778,1718087434939,-252.45284323,0.000205,2]
[329082780,1718087434951,-286.53135198,0.000206,2]
[329082782,1718087434961,-153.0,0.00020602,2]
[329082784,1718087434974,-895.6,0.00021043,5]
[329082785,1718087434984,-539.81469306,0.00021267,2]
[329082786,1718087434994,-709.46697813,0.00021596,5]
[329082867,1718087444773,-186.13302187,0.00021596,5]
[329082869,1718087444783,-7918.32867576,0.00021662,2]
[329082871,1718087444794,-253.09240978,0.00021818,2]
[329082873,1718087444805,-166.666666,0.00021918,2]
[329082875,1718087444817,-895.6,0.0002215,5]
[329082877,1718087444828,-166.666666,0.00022431,2]
[329082879,1718087444838,-895.6,0.00022703,5]
[329082881,1718087444849,-253.09240977,0.00022863,2]
[329082883,1718087444859,-3925.48441145,0.000229,2]
[329082885,1718087444873,-87133.21351709,0.000229,2]
[329082887,1718087444885,-496.36527315,0.000229,2]
[329082930,1718087445947,-885.80928774,0.000229,2]
[329082936,1718087446443,-125542.76431953,0.000229,2]
[329082940,1718087446459,-5309.07194716,0.000229,2]
[329082949,1718087447415,-761.78592997,0.000229,2]
[329082951,1718087447428,-10766.62021487,0.000229,2]
[329082955,1718087448244,927.63941968,9.999e-05,2]
[329082957,1718087448356,-7816.93834724,0.000229,2]
[329082989,1718087827904,5047.44,0.00023,30]
[329082990,1718087846753,5045.0,0.00023,30]
[329083057,1718088633725,-1984.07396026,0.00017443,2]
[329083060,1718088633737,-489.40086406,0.00017444,2]
[329083062,1718088633749,-11321.0987706,0.00017445,2]
[329083064,1718088633761,-3000.0,0.00017571,2]
[329083066,1718088633774,-7920.63674527,0.00017809,2]
[329083068,1718088633789,-647.08795642,0.00017811,2]
[329083070,1718088633800,-606.81007704,0.000185,2]
[329083072,1718088633811,-215.631394,0.00018613,2]
[329083073,1718088633821,-24583.6519577,0.00019598,2]
[329083075,1718088633836,-314.16823701,0.00020211,2]
[329083077,1718088633847,-275.9,0.00020311,3]
[329083079,1718088633861,-152.84197974,0.000204,2]
[329083080,1718088633872,-153.0,0.00020602,2]
[329083081,1718088633885,-182.99112092,0.000209,2]
[329083082,1718088633897,-275.9,0.00020926,5]
[329083083,1718088633914,-314.16823699,0.0002146,2]
[329083084,1718088633927,-275.9,0.0002154,5]
[329083085,1718088633938,-151.0,0.0002154,5]
[329083086,1718088633949,-166.666666,0.00021918,2]
[329083087,1718088633959,-275.9,0.00022155,5]
[329083088,1718088633975,-151.0,0.00022155,5]
[329083089,1718088633987,-166.666666,0.00022431,2]
[329083090,1718088634005,-4239.70515949,0.00022563,2]
[329083091,1718088634017,-314.16823699,0.00022708,2]
[329083092,1718088634137,-275.9,0.00022769,5]
[329083093,1718088634148,-151.0,0.00022769,5]
[329083094,1718088634164,-4485.65189069,0.000229,2]
[329083149,1718088645884,-166.666666,0.00022157,2]
[329083150,1718088645895,-166.666666,0.00022761,2]
[329083151,1718088645905,-5914.87249657,0.000229,2]
[329083152,1718088645915,-23711.03589265,0.00023,2]
[329083153,1718088645927,-5126.66316086,0.00023,2]
[329083166,1718088647864,-11910.57078757,0.00023,2]
[329083182,1718089361497,411.64915333,9.999e-05,2]
[329083188,1718089473500,300.31915887,9.999e-05,2]
[329083189,1718089489531,300.31915887,9.999e-05,2]
[329083190,1718089511512,303.51707618,9.999e-05,2]
[329083318,1718089834840,-1769.44999391,0.00015599,2]
[329083399,1718089840912,-873.85615239,0.00015599,2]
[329083403,1718089840923,-489.40086406,0.00019678,2]
[329083405,1718089840934,-5854.41825759,0.00019678,2]
[329083408,1718089840946,-3000.0,0.00019679,2]
[329083410,1718089840957,-3990.4542233,0.00019808,2]
[329083411,1718089840972,-163.91769632,0.00019928,2]
[329083412,1718089840982,-160.361286,0.00020031,2]
[329083413,1718089840992,-300.0,0.00020338,2]
[329083414,1718089841003,-774.49408999,0.00020339,2]
[329083415,1718089841013,-164.65983281,0.00020339,2]
[329083416,1718089841023,-528.3176694,0.00020339,2]
[329083417,1718089841034,-411.92571325,0.00020339,2]
[329083418,1718089841044,-14050.94256827,0.00020341,2]
[329083419,1718089841205,-187.2,0.00020346,3]
[329083420,1718089841216,-153.0,0.00020604,2]
[329083421,1718089841227,-153.0,0.00020604,2]
[329083422,1718089841237,-153.0,0.00020604,2]
[329083423,1718089841247,-153.0,0.00020611,2]
[329083424,1718089841256,-153.0,0.00020611,2]
[329083425,1718089841267,-153.0,0.00020611,2]
[329083426,1718089841278,-153.0,0.00020611,2]
[329083427,1718089841288,-153.0,0.00020611,2]
[329083428,1718089841298,-153.0,0.00020611,2]
[329083429,1718089841308,-153.0,0.00020611,2]
[329083430,1718089841319,-153.0,0.00020611,2]
[329083431,1718089841329,-153.0,0.00020611,2]
[329083432,1718089841339,-153.0,0.00020611,2]
[329083433,1718089841350,-153.0,0.00020611,2]
[329083434,1718089841360,-153.0,0.00020611,2]
[329083435,1718089841371,-187.2,0.00020957,5]
[329083436,1718089841381,-1000.0,0.00021,2]
[329083437,1718089841391,-187.2,0.00021569,5]
[329083438,1718089841402,-624.38164662,0.00021662,2]
[329083439,1718089841415,-2604.19504929,0.00021662,2]
[329083440,1718089841425,-166.666666,0.00021918,2]
[329083441,1718089841435,-833.56147145,0.00022,2]
[329083442,1718089841448,-166.43852855,0.00022,2]
[329083443,1718089841461,-187.2,0.0002218,5]
[329083444,1718089841472,-166.666666,0.00022431,2]
[329083445,1718089841482,-153.0,0.0002249,2]
[329083446,1718089841492,-153.0,0.0002249,2]
[329083447,1718089841503,-584.9466086,0.0002249,2]
[329083448,1718089841513,-534.72484893,0.00022534,2]
[329083449,1718089841527,-3704.98031056,0.00022534,2]
[329083450,1718089841539,-322.5151893,0.00022578,2]
[329083451,1718089841549,-33.66852402,0.00022578,2]
[329083914,1718089847786,-120.44358448,0.00022578,2]
[329083918,1718089847797,-204.6475642,0.00022578,2]
[329083922,1718089847807,-26.01885132,0.00022583,2]
[329084069,1718089850316,-995.25905827,0.00022583,2]
[329084070,1718089850327,-295.88073895,0.00022617,7]
[329084181,1718089881264,-204.11926105,0.00022617,7]
[329084182,1718089881275,-605.08,0.00022617,7]
[329084183,1718089881285,-500.0,0.00022617,7]
[329084184,1718089881296,-500.0,0.00022617,7]
[329084185,1718089881306,-534.52,0.00022617,7]
[329084186,1718089881316,-500.0,0.00022617,7]
[329084187,1718089881327,-187.2,0.00022791,5]
[329084188,1718089881338,-151.0,0.00022791,5]
[329084189,1718089881348,-210.91034149,0.000229,2]
[329084190,1718089881358,-166.666666,0.00022944,2]
[329084191,1718089881368,-110300.91855992,0.00023,2]
[329084192,1718089881378,-1000.0,0.00023,5]
[329084193,1718089881389,-4373.23533584,0.00023,2]
[329084194,1718089881399,-160.5333,0.00023,2]
[329084195,1718089881409,-500.0,0.00023,2]
[329084196,1718089881420,-1000.0,0.00023,2]
[329084197,1718089881431,-187.2,0.00023403,7]
[329084198,1718089881446,-151.0,0.00023403,7]
[329084199,1718089881457,-210.91034147,0.00023404,2]
[329084200,1718089881467,-166.666666,0.00023456,2]
[329084201,1718089881480,-254.0,0.000236,2]
[329084202,1718089881491,-3608.30654398,0.0002361,2]
[329084203,1718089881501,-97950.20201357,0.00023617,2]
[329084204,1718089881511,-3608.30654398,0.00023623,2]
[329084205,1718089881521,-328370.40797592,0.00023641,2]
[329084206,1718089881532,-3608.30654398,0.00023651,2]
[329084207,1718089881542,-3608.30654398,0.00023653,2]
[329084208,1718089881555,-137880.49654947,0.00023678,2]
[329084209,1718089881568,-190489.91142645,0.00023678,2]
[329084210,1718089881578,-3608.30654398,0.00023688,2]
[329084211,1718089881587,-593.0,0.000237,2]
[329084212,1718089881597,-1835.57650307,0.00023726,2]
[329084213,1718089881607,-1356.5092919,0.00023747,2]
[329084214,1718089881619,-2038.77836294,0.00023747,2]
[329084215,1718089881629,-254.68591707,0.00023747,2]
[329084216,1718089881639,-606.170302,0.00023747,2]
[329084217,1718089881649,-1985.96347555,0.00023747,2]
[329084218,1718089881659,-3902.94550506,0.00023747,2]
[329084219,1718089881669,-2647.35651139,0.00023747,2]
[329084220,1718089881678,-489.40086406,0.00023747,2]
[329084221,1718089881691,-872.36892677,0.00023748,2]
[329084223,1718089881701,-500.0,0.00023748,2]
[329084225,1718089881712,-269.50012788,0.00023749,2]
[329084227,1718089881722,-287.09109077,0.00023749,2]
[329084229,1718089881733,-202.88742561,0.00023749,2]
[329084231,1718089881743,-320.74665411,0.00023749,2]
[329084233,1718089881754,-563.30435782,0.00023749,2]
[329084235,1718089881763,-659.44510114,0.00023749,2]
[329084236,1718089881774,-1634.19924497,0.00023749,2]
[329084238,1718089881784,-4535.63879869,0.00023749,2]
[329084240,1718089881795,-19313.15373324,0.00023749,2]
[329084242,1718089881805,-158.10469492,0.0002375,2]
[329084244,1718089881816,-9423.79637642,0.00023751,15]
[329084245,1718089881825,-14517.43580001,0.00023751,30]
[329084246,1718089881836,-2512.1664198,0.00023798,2]
[329084247,1718089881845,-166.666666,0.00023808,2]
[329084248,1718089881857,-5918.43286132,0.0002383,2]
[329084249,1718089881867,-500.0,0.00023898,2]
[329084250,1718089881877,-500.0,0.00023898,2]
[329084251,1718089881887,-500.0,0.00023898,2]
[329084252,1718089881898,-500.0,0.00023898,2]
[329084253,1718089881909,-500.0,0.00023898,2]
[329084254,1718089881920,-500.0,0.00023898,2]
[329084255,1718089881930,-500.0,0.00023898,2]
[329084256,1718089881948,-500.0,0.00023898,2]
[329084257,1718089881964,-500.0,0.00023898,2]
[329084258,1718089881977,-500.0,0.00023898,2]
[329084259,1718089881989,-500.0,0.00023898,2]
[329084260,1718089882001,-500.0,0.00023898,2]
[329084261,1718089882012,-500.0,0.00023898,2]
[329084262,1718089882024,-500.0,0.00023898,2]
[329084263,1718089882036,-500.0,0.00023898,2]
[329084264,1718089882047,-500.0,0.00023898,2]
[329084265,1718089882059,-500.0,0.00023898,2]
[329084266,1718089882069,-500.0,0.00023898,2]
[329084267,1718089882081,-500.0,0.00023898,2]
[329084268,1718089882092,-500.0,0.00023898,2]
[329084269,1718089882103,-500.0,0.00023898,2]
[329084270,1718089882113,-500.0,0.00023898,2]
[329084271,1718089882124,-500.0,0.00023898,2]
[329084272,1718089882135,-500.0,0.00023898,2]
[329084273,1718089882145,-500.0,0.00023898,2]
[329084274,1718089882155,-500.0,0.00023898,2]
[329084275,1718089882165,-500.0,0.00023898,2]
[329084276,1718089882175,-500.0,0.00023898,2]
[329084277,1718089882189,-214.03006227,0.00023898,2]
[329084278,1718089882203,-500.0,0.00023898,2]
[329084280,1718089882214,-500.0,0.00023898,2]
[329084282,1718089882224,-500.0,0.00023898,2]
[329084284,1718089882235,-4257.72363676,0.00023899,2]
[329084285,1718089882245,-16753.23744558,0.000239,2]
[329084286,1718089882255,-210.91034147,0.00023907,2]
[329084287,1718089882266,-2000.0,0.00023907,2]
[329084288,1718089882277,-166.666666,0.00023969,2]
[329084289,1718089882287,-3000.0,0.00023999,2]
[329084290,1718089882297,-3000.0,0.00023999,2]
[329084292,1718089882307,-3000.0,0.00023999,2]
[329084293,1718089882318,-2927.80927491,0.00023999,2]
[329084295,1718089882328,-7067.49125402,0.00024,15]
[329084297,1718089882340,-151.0,0.00024,2]
[329084299,1718089882351,-2761.89102913,0.00024,7]
[329084302,1718089882362,-1000.0,0.00024,24]
[329084303,1718089882372,-2913.0002896,0.00024,5]
[329084306,1718089882383,-587.98823479,0.00024,2]
[329084308,1718089882394,-31892.58692993,0.00024,2]
[329084310,1718089882405,-151.0,0.00024007,2]
[329084312,1718089882416,-153.652346,0.00024007,2]
[329084314,1718089882427,-151.0,0.00024007,2]
[329084315,1718089882449,-157.737243,0.00024007,2]
[329084317,1718089882460,-151.0,0.00024007,2]
[329084320,1718089882479,-151.0,0.00024007,2]
[329084321,1718089882490,-169.435874,0.00024007,2]
[329084323,1718089882501,-151.0,0.00024007,2]
[329084326,1718089882512,-151.0,0.00024007,2]
[329084327,1718089882522,-151.0,0.00024007,2]
[329084330,1718089882533,-151.0,0.00024007,2]
[329084332,1718089882550,-153.65152,0.00024007,2]
[329084334,1718089882568,-942.809037,0.00024007,2]
[329084336,1718089882579,-942.809037,0.00024007,2]
[329084338,1718089882590,-151.0,0.00024007,2]
[329084339,1718089882602,-151.0,0.00024007,2]
[329084341,1718089882614,-151.0,0.00024007,2]
[329084344,1718089882626,-151.0,0.00024007,2]
[329084346,1718089882636,-171.930811,0.00024007,2]
[329084347,1718089882647,-151.0,0.00024007,2]
[329084350,1718089882658,-151.0,0.00024007,2]
[329084351,1718089882669,-151.0,0.00024007,2]
[329084353,1718089882679,-151.0,0.00024007,2]
[329084355,1718089882697,-246.129188,0.00024007,2]
[329084357,1718089882708,-151.0,0.00024007,2]
[329084359,1718089882719,-151.0,0.00024007,2]
[329084361,1718089882730,-151.0,0.00024007,2]
[329084364,1718089882742,-151.0,0.00024007,2]
[329084366,1718089882754,-151.0,0.00024007,2]
[329084368,1718089882764,-262.099115,0.00024007,2]
[329084379,1718089882775,-499.476839,0.00024007,2]
[329084381,1718089882894,-499.476839,0.00024007,2]
[329084383,1718089882905,-499.476839,0.00024007,2]
[329084385,1718089882916,-499.476839,0.00024007,2]
[329084387,1718089882930,-151.0,0.00024007,2]
[329084389,1718089882949,-151.0,0.00024007,2]
[329084391,1718089882961,-151.0,0.00024007,2]
[329084393,1718089882974,-151.0,0.00024007,2]
[329084395,1718089882990,-1701.6903454,0.00024007,2]
[329084397,1718089883002,-10357.14207114,0.00024007,2]
[329084399,1718089883013,-1862.29735038,0.00024007,2]
[329084401,1718089883025,-88888.0,0.00024007,3]
[329084403,1718089883038,-187.2,0.00024014,7]
[329084405,1718089883054,-151.0,0.00024014,7]
[329084407,1718089883066,-297.9252,0.000241,2]
[329084409,1718089883077,-328.063789,0.00024105,2]
[329084411,1718089883089,-2096.08137509,0.00024107,2]
[329084413,1718089883101,-280.44889956,0.00024107,2]
[329084415,1718089883113,-201.35849445,0.00024107,2]
[329084417,1718089883125,-155.02937188,0.00024107,2]
[329084420,1718089883137,-390.27974138,0.00024107,2]
[329084422,1718089883150,-216.88401722,0.00024107,2]
[329084424,1718089883163,-477.39848846,0.00024107,2]
[329084426,1718089883174,-302.96475411,0.00024107,2]
[329084427,1718089883189,-764.37756913,0.00024107,2]
[329084428,1718089883203,-571.74027931,0.00024107,2]
[329084430,1718089883214,-305.26070198,0.00024107,2]
[329084431,1718089883225,-265.29300526,0.00024107,2]
[329084434,1718089883238,-724.75882808,0.00024107,2]
[329084436,1718089883250,-178.83357774,0.00024107,2]
[329084438,1718089883262,-571.50851756,0.00024107,2]
[329084440,1718089883273,-243.76398815,0.00024107,2]
[329084442,1718089883284,-155.89193003,0.00024107,2]
[329084444,1718089883295,-156.6002903,0.00024107,2]
[329084446,1718089883305,-267.35114428,0.00024107,2]
[329084448,1718089883317,-480.64149903,0.00024107,2]
[329084450,1718089883328,-155.60975202,0.00024107,2]
[329084452,1718089883339,-157.42927759,0.00024107,2]
[329084454,1718089883350,-195.36330289,0.00024107,2]
[329084456,1718089883362,-3174.31661083,0.00024107,2]
[329084458,1718089883373,-208.24002311,0.00024107,2]
[329084460,1718089883384,-7912.47543135,0.00024107,2]
[329084462,1718089883399,-367.58363284,0.00024107,2]
[329084465,1718089883412,-304.52303766,0.00024107,2]
[329084471,1718089883469,-370.00001,0.00024107,2]
[329084473,1718089883482,-385.989009,0.00024107,2]
[329084475,1718089883499,-394.22731001,0.00024107,2]
[329084556,1718089963204,-2000000.0,0.00029048,120]
[329084557,1718089968447,-2000000.0,0.00029048,120]
[329084558,1718089978264,-158541.86966878,0.00029048,120]
[329084559,1718089978294,-1841458.13033122,0.00029048,120]
[329084560,1718089981954,-2000000.0,0.00029048,120]
[329084561,1718090012297,372.78673862,9.999e-05,2]
[329084562,1718090035669,526.5926666,9.999e-05,2]
[329084594,1718090479298,151.02869545,0.00022569,30]
[329084595,1718090479375,151.02869545,0.00022117,120]
[329084596,1718090566462,-3000000.0,0.00029011,120]
[329084598,1718090625160,-496346.32202977,0.00029011,120]
[329084599,1718090625195,-544222.67145847,0.00029011,120]
[329084600,1718090625242,-341939.60866191,0.00029011,120]
[329084601,1718090625279,-2617491.39784985,0.00029011,120]
[329084605,1718090684992,-2000000.0,0.00029011,120]
[329084606,1718090702658,-350806.3544409,0.00029011,120]
[329084607,1718090702691,-332.04259264,0.00029011,120]
[329084608,1718090702726,-10014.30120595,0.00029011,120]
[329084609,1718090702783,-15433.78112325,0.00029011,120]
[329084610,1718090702814,-5000.0,0.00029011,120]
[329084611,1718090702854,-5000.0,0.00029011,120]
[329084612,1718090702892,-232.22682236,0.00029011,120]
[329084613,1718090702950,-191.3009181,0.00029011,120]
[329084614,1718090702991,-6594.825,0.00029011,120]
[329084615,1718090703023,-7254.3075,0.00029011,120]
[329084616,1718090703055,-7913.79,0.00029011,120]
[329084617,1718090703087,-8573.2725,0.00029011,120]
[329084618,1718090703119,-3297.64645833,0.00029011,120]
[329084619,1718090703149,-519.54240298,0.00029011,120]
[329084620,1718090703182,-1000.0,0.00029011,120]
[329084621,1718090703215,-1000.0,0.00029011,120]
[329084622,1718090703245,-529.199999,0.00029011,120]
[329084623,1718090801717,167.580119,0.00025753,120]
[329084733,1718091035176,-660.11978951,0.00020584,2]
[329084736,1718091035187,-2114.12320999,0.00020584,2]
[329084739,1718091035196,-489.40086406,0.00020584,2]
[329084742,1718091035206,-153.0,0.00020619,2]
[329084745,1718091035216,-153.0,0.00020619,2]
[329084748,1718091035227,-153.0,0.00020619,2]
[329084751,1718091035236,-153.0,0.00020619,2]
[329084754,1718091035247,-153.0,0.00020619,2]
[329084756,1718091035257,-153.0,0.00020619,2]
[329084759,1718091035267,-153.0,0.00020619,2]
[329084762,1718091035277,-153.0,0.00020619,2]
[329084766,1718091035288,-153.0,0.00020619,2]
[329084769,1718091035298,-153.0,0.00020619,2]
[329084771,1718091035308,-153.0,0.00020619,2]
[329084774,1718091035318,-153.0,0.00020619,2]
[329084776,1718091035329,-153.0,0.00020619,2]
[329084778,1718091035339,-153.0,0.00020619,2]
[329084780,1718091035349,-153.0,0.00020619,2]
[329084782,1718091035359,-153.0,0.00020619,2]
[329084784,1718091035370,-153.0,0.00020619,2]
[329084785,1718091035380,-153.0,0.00020619,2]
[329084787,1718091035390,-153.0,0.00020619,2]
[329084789,1718091035400,-153.0,0.00020619,2]
[329084791,1718091035410,-153.0,0.00020619,2]
[329084793,1718091035420,-153.0,0.00020619,2]
[329084795,1718091035429,-153.0,0.00020619,2]
[329084797,1718091035440,-164.0,0.00020789,2]
[329084799,1718091035450,-164.0,0.00020789,2]
[329084801,1718091035460,-164.0,0.00020789,2]
[329084803,1718091035469,-164.0,0.00020789,2]
[329084805,1718091035479,-164.0,0.00020789,2]
[329084807,1718091035490,-164.0,0.00020789,2]
[329084809,1718091035501,-164.0,0.00020789,2]
[329084811,1718091035511,-164.0,0.00020789,2]
[329084813,1718091035521,-164.0,0.00020789,2]
[329084815,1718091035531,-164.0,0.00020789,2]
[329084818,1718091035545,-164.0,0.00020789,2]
[329084819,1718091035555,-164.0,0.00020789,2]
[329084821,1718091035566,-164.0,0.00020789,2]
[329084823,1718091035576,-164.0,0.00020789,2]
[329084825,1718091035586,-164.0,0.00020789,2]
[329084828,1718091035596,-164.0,0.00020789,2]
[329084830,1718091035608,-164.0,0.00020789,2]
[329084832,1718091035618,-164.0,0.00020789,2]
[329084834,1718091035628,-164.0,0.00020789,2]
[329084836,1718091035638,-164.0,0.00020789,2]
[329084838,1718091035648,-164.0,0.00020789,2]
[329084840,1718091035658,-164.0,0.00020789,2]
[329084842,1718091035668,-164.0,0.00020789,2]
[329084844,1718091035678,-164.0,0.00020789,2]
[329084846,1718091035688,-164.0,0.00020789,2]
[329084848,1718091035698,-164.0,0.00020789,2]
[329084850,1718091035707,-164.0,0.00020789,2]
[329084852,1718091035718,-164.0,0.00020789,2]
[329084854,1718091035728,-164.0,0.00020789,2]
[329084856,1718091035738,-164.0,0.00020789,2]
[329084858,1718091035749,-164.0,0.00020789,2]
[329084860,1718091035759,-164.0,0.00020789,2]
[329084862,1718091035768,-164.0,0.00020789,2]
[329084864,1718091035778,-164.0,0.00020789,2]
[329084866,1718091035789,-164.0,0.00020789,2]
[329084868,1718091035799,-164.0,0.00020789,2]
[329084870,1718091035809,-164.0,0.00020789,2]
[329084872,1718091035819,-164.0,0.00020789,2]
[329084874,1718091035829,-164.0,0.00020789,2]